bitfinex/quotes_BTCUSD_20250829
["timestamp","ask_amount","ask_price","bid_price","bid_amount"]
[1756511144274,6.26239417,108680.0,108670.0,0.00835333]
[1756511144940,6.26239417,108680.0,108670.0,0.00735333]
[1756511145364,6.10875417,108680.0,108670.0,0.00735333]
[1756511145538,6.26235417,108680.0,108670.0,0.00520333]
[1756511145994,6.26235417,108680.0,108670.0,0.00214333]
[1756511146216,6.2946253,108680.0,108670.0,0.00214333]
[1756511147102,6.29362937,108680.0,108670.0,0.00014333]
[1756511147339,6.29562937,108680.0,108670.0,0.00214333]
[1756511147789,6.29362937,108680.0,108670.0,0.00014333]
[1756511147996,6.29562937,108680.0,108670.0,0.00014333]
[1756511148205,6.29562937,108680.0,108670.0,0.00214333]
[1756511150365,6.32879208,108680.0,108670.0,0.00214333]
[1756511150784,6.32899208,108680.0,108670.0,0.00532333]
[1756511151233,6.77849208,108680.0,108670.0,0.00532333]
[1756511153739,6.77849208,108680.0,108670.0,0.00214333]
[1756511153982,6.77849208,108680.0,108670.0,0.00532333]
[1756511157560,6.7547981,108680.0,108670.0,0.00532333]
[1756511157736,6.77848638,108680.0,108670.0,0.00532333]
[1756511158355,6.62468638,108680.0,108670.0,0.00532333]
[1756511158565,6.85333349,108680.0,108670.0,0.00727333]
[1756511158766,6.77856638,108680.0,108670.0,0.00727333]
[1756511158983,6.77856638,108680.0,108670.0,0.00214333]
[1756511159642,6.77856638,108680.0,108670.0,0.00532333]
[1756511161244,6.62468856,108680.0,108670.0,0.00727333]
[1756511161479,6.77868856,108680.0,108670.0,0.00727333]
[1756511161710,6.73906541,108680.0,108670.0,0.00727333]
[1756511163411,6.73910541,108680.0,108670.0,0.00727333]
[1756511163738,6.73911171,108680.0,108670.0,0.00727333]
[1756511166201,6.73911171,108680.0,108670.0,0.00214333]
[1756511166617,6.7455785,108680.0,108670.0,0.00214333]
[1756511167155,6.73912477,108680.0,108670.0,0.00214333]
[1756511167340,6.77875602,108680.0,108670.0,0.00214333]
[1756511167578,7.20756228,108680.0,108670.0,0.00214333]
[1756511167771,7.20757052,108680.0,108670.0,0.00214333]
[1756511168851,6.75807052,108680.0,108670.0,0.00214333]
[1756511169057,6.73326148,108680.0,108670.0,0.00214333]
[1756511170952,5.72160896,108680.0,108670.0,0.00214333]
[1756511171161,6.73318148,108680.0,108670.0,0.00214333]
[1756511172000,6.78318148,108680.0,108670.0,0.00214333]
[1756511172235,0.18406037,108660.0,108650.0,0.00318]
[1756511172462,6.39471288,108660.0,108650.0,0.00365748]
[1756511172911,6.39471288,108660.0,108650.0,0.00560748]
[1756511173118,6.42238988,108660.0,108650.0,0.00560748]
[1756511173547,6.42238988,108660.0,108650.0,0.00660748]
[1756511173938,6.42238988,108660.0,108650.0,0.00960748]
[1756511174342,6.42238988,108660.0,108650.0,0.00860748]
[1756511175202,6.42434988,108660.0,108650.0,0.00560748]
[1756511175613,6.42434988,108660.0,108650.0,0.00660748]
[1756511176056,6.42434988,108660.0,108650.0,0.00560748]
[1756511176286,6.42434988,108660.0,108650.0,0.00660748]
[1756511176721,6.26838988,108660.0,108650.0,0.00660748]
[1756511176896,6.42430988,108660.0,108650.0,0.00660748]
[1756511177386,5.84158362,108660.0,108650.0,0.00660748]
[1756511177597,0.73343998,108660.0,108650.0,0.00660748]
[1756511177806,0.8873595,108660.0,108650.0,0.00660748]
[1756511178016,0.88735941,108660.0,108650.0,0.00660748]
[1756511178428,0.229601,108660.0,108650.0,0.19068479]
[1756511178626,0.22672,108660.0,108650.0,0.19068479]
[1756511178852,1.10882663,108660.0,108650.0,0.00660748]
[1756511179067,0.76882663,108660.0,108650.0,0.19068479]
[1756511179281,1.10882663,108660.0,108650.0,0.18968479]
[1756511179498,1.10882663,108660.0,108650.0,0.00560748]
[1756511179710,1.10682663,108660.0,108650.0,0.00960748]
[1756511180113,1.10682663,108660.0,108650.0,0.19568479]
[1756511180318,1.11060843,108660.0,108650.0,0.19568479]
[1756511181438,1.11039712,108660.0,108650.0,0.01160748]
[1756511181659,1.53920338,108660.0,108650.0,0.01160748]
[1756511181877,1.53920338,108660.0,108650.0,0.01176748]
[1756511181878,1.61000338,108660.0,108650.0,0.01176748]
[1756511182505,1.61000338,108660.0,108650.0,0.00776748]
[1756511183143,1.61000338,108660.0,108650.0,0.00676748]
[1756511185114,1.61000338,108660.0,108650.0,0.00976748]
[1756511201822,1.52102517,108660.0,108650.0,0.00976748]
[1756511203414,1.5239062,108660.0,108650.0,0.00976748]
[1756511205510,1.52424232,108660.0,108650.0,0.00976748]
[1756511208350,1.55191332,108660.0,108650.0,0.00976748]
[1756511210103,1.64020964,108660.0,108650.0,0.00976748]
[1756511210288,6.65748665,108660.0,108650.0,0.00976748]
[1756511210657,6.65748927,108660.0,108650.0,0.00976748]
[1756511210888,6.50376929,108660.0,108650.0,0.00976748]
[1756511211214,6.65740929,108660.0,108650.0,0.00976748]
[1756511211620,6.65736929,108660.0,108650.0,0.00976748]
[1756511214846,6.50376929,108660.0,108650.0,0.00976748]
[1756511215044,6.65736929,108660.0,108650.0,0.00976748]
[1756511217387,6.65358749,108660.0,108650.0,0.00598568]
[1756511217635,6.65570749,108660.0,108650.0,0.00598568]
[1756511218822,6.65570749,108660.0,108650.0,0.004]
[1756511218998,7.08764181,108660.0,108650.0,0.004]
[1756511219639,6.93404181,108660.0,108650.0,0.004]
[1756511219801,0.18407731,108650.0,108640.0,0.00305]
[1756511220001,6.19554595,108650.0,108640.0,0.00305]
[1756511220216,1.04202595,108650.0,108640.0,0.00502]
[1756511220442,1.19554595,108650.0,108640.0,0.00502]
[1756511221400,1.19554595,108650.0,108640.0,0.00602]
[1756511222250,0.76657163,108650.0,108640.0,0.00602]
[1756511222736,0.76657163,108650.0,108640.0,0.00902]
[1756511222928,0.76855163,108650.0,108640.0,0.00902]
[1756511224483,0.78966635,108650.0,108640.0,0.00902]
[1756511226671,0.78764635,108650.0,108640.0,0.02833247]
[1756511226884,0.02111472,108650.0,108640.0,0.64370221]
[1756511227099,0.15352,108650.0,108640.0,0.64140104]
[1756511227439,0.15352,108650.0,108640.0,0.21242672]
[1756511227887,0.58249432,108650.0,108640.0,0.21242672]
[1756511228940,0.44953208,108650.0,108640.0,0.21242672]
[1756511229144,0.60301208,108650.0,108640.0,0.19311425]
[1756511229347,0.17403776,108650.0,108640.0,0.19311425]
[1756511229603,0.60301208,108650.0,108640.0,0.19311425]
[1756511234549,0.17403776,108650.0,108640.0,0.19311425]
[1756511235164,0.02055776,108650.0,108640.0,0.64302739]
[1756511235378,1.17779281,108660.0,108650.0,0.18407731]
[1756511235608,1.38248713,108660.0,108650.0,0.18407731]
[1756511235831,1.53596713,108660.0,108650.0,0.18909731]
[1756511236196,1.53794713,108660.0,108650.0,0.18909731]
[1756511236603,1.55912818,108660.0,108650.0,0.19109731]
[1756511237812,1.55912818,108660.0,108650.0,0.18607731]
[1756511238013,0.70117954,108660.0,108650.0,0.18607731]
[1756511238227,1.13015386,108660.0,108650.0,0.18607731]
[1756511238433,1.13015386,108660.0,108650.0,0.19109731]
[1756511242486,1.13015386,108660.0,108650.0,0.18607731]
[1756511242616,1.13015386,108660.0,108650.0,0.19129731]
[1756511243778,1.13015386,108660.0,108650.0,0.6868453]
[1756511243779,0.02165865,108660.0,108650.0,0.6868453]
[1756511243984,0.17513865,108660.0,108650.0,0.6868453]
[1756511244187,0.60411297,108660.0,108650.0,0.21896531]
[1756511244805,0.60411297,108660.0,108650.0,0.21696531]
[1756511245316,0.60411297,108660.0,108650.0,0.22296531]
[1756511245587,0.17718865,108660.0,108650.0,0.22296531]
[1756511245782,1.21919766,108660.0,108650.0,0.22296531]
[1756511246008,1.03513729,108660.0,108650.0,0.22296531]
[1756511246205,1.03308729,108660.0,108650.0,0.22296531]
[1756511246409,0.17513865,108660.0,108650.0,0.22296531]
[1756511246624,0.60411297,108660.0,108650.0,0.22296531]
[1756511250535,0.17513865,108660.0,108650.0,0.22296531]
[1756511250824,0.60411297,108660.0,108650.0,0.22296531]
[1756511253020,0.17513865,108660.0,108650.0,0.22296531]
[1756511253252,0.60411297,108660.0,108650.0,0.22296531]
[1756511256218,0.60459297,108660.0,108650.0,0.22296531]
[1756511258235,0.60468499,108660.0,108650.0,0.22296531]
[1756511258742,0.60673499,108660.0,108650.0,0.22296531]
[1756511259267,0.60664297,108660.0,108650.0,0.22287329]
[1756511260876,0.60459297,108660.0,108650.0,0.22287329]
[1756511262483,0.45063297,108660.0,108650.0,0.22287329]
[1756511265328,0.45275297,108660.0,108650.0,0.22287329]
[1756511267096,0.45063297,108660.0,108650.0,0.22287329]
[1756511268154,0.45275297,108660.0,108650.0,0.22287329]
[1756511269931,0.02377865,108660.0,108650.0,0.22287329]
[1756511270195,0.45063297,108660.0,108650.0,0.22287329]
[1756511271642,0.0004776,108660.0,108650.0,0.81368881]
[1756511275109,0.0004776,108660.0,108650.0,0.96740881]
[1756511279328,0.27142188,108670.0,108660.0,0.20499919]
[1756511279528,0.27142188,108670.0,108660.0,0.2082567]
[1756511279743,0.27347188,108670.0,108660.0,0.29861302]
[1756511280101,0.27347188,108670.0,108660.0,0.32627702]
[1756511280710,0.27347188,108670.0,108660.0,0.32727702]
[1756511280918,0.27347188,108670.0,108660.0,0.32606702]
[1756511281131,0.27347188,108670.0,108660.0,0.47970702]
[1756511281330,0.27347188,108670.0,108660.0,0.48291702]
[1756511282413,0.27347188,108670.0,108660.0,0.3946207]
[1756511283667,0.29160732,108670.0,108660.0,0.3946207]
[1756511284075,0.29160732,108670.0,108660.0,0.3893107]
[1756511284279,0.29160732,108670.0,108660.0,0.3945807]
[1756511286181,0.02018544,108670.0,108660.0,0.3945807]
[1756511286382,0.44915976,108670.0,108660.0,0.3945807]
[1756511286582,0.44915976,108670.0,108660.0,0.2409807]
[1756511286785,0.44915976,108670.0,108660.0,0.3946207]
[1756511289466,0.44915976,108670.0,108660.0,0.4416518]
[1756511290018,0.02018544,108670.0,108660.0,0.4416518]
[1756511290245,0.02018544,108670.0,108660.0,0.87062612]
[1756511291632,0.02018544,108670.0,108660.0,0.82359502]
[1756511291846,0.01813544,108670.0,108660.0,0.82359502]
[1756511292282,1.11588284,108680.0,108660.0,0.3946207]
[1756511292483,0.00205,108670.0,108660.0,0.82359502]
[1756511292821,1.10692081,108680.0,108670.0,0.18404343]
[1756511293034,0.92289432,108680.0,108670.0,0.18931343]
[1756511293428,0.92289432,108680.0,108670.0,0.27760975]
[1756511293658,0.477164,108690.0,108680.0,0.18402649]
[1756511293809,1.12742956,108690.0,108680.0,0.18929649]
[1756511294010,0.99170039,108690.0,108680.0,0.34321649]
[1756511294216,1.23871515,108690.0,108680.0,0.34321649]
[1756511294414,1.39263515,108690.0,108680.0,0.34321649]
[1756511294776,1.39263515,108690.0,108680.0,0.34421649]
[1756511295195,1.57664471,108690.0,108680.0,0.34321649]
[1756511295341,1.57664471,108690.0,108680.0,0.34621649]
[1756511295547,1.23664471,108690.0,108680.0,0.34621649]
[1756511295970,1.23664471,108690.0,108680.0,0.37387749]
[1756511296387,1.23664471,108690.0,108680.0,0.37587749]
[1756511296594,0.46769083,108690.0,108680.0,0.37587749]
[1756511297629,0.46769083,108690.0,108680.0,0.80485181]
[1756511298237,0.01819083,108690.0,108680.0,1.34306127]
[1756511298480,0.01819083,108690.0,108680.0,0.82579063]
[1756511298689,0.76684916,108700.0,108690.0,0.18400956]
[1756511298894,0.76889916,108700.0,108690.0,0.18400956]
[1756511299444,0.78708814,108700.0,108690.0,0.21166756]
[1756511299867,0.78708814,108700.0,108690.0,0.21366756]
[1756511300081,0.78708814,108700.0,108690.0,0.21466756]
[1756511302170,0.78503814,108700.0,108690.0,0.21974756]
[1756511302386,0.78708814,108700.0,108690.0,0.21974756]
[1756511302821,0.78708814,108700.0,108690.0,0.21466756]
[1756511304350,0.78708814,108700.0,108690.0,0.030658]
[1756511304737,0.78708814,108700.0,108690.0,0.003]
[1756511305396,0.78708814,108700.0,108690.0,0.18700956]
[1756511307849,1.21606246,108700.0,108690.0,0.18700956]
[1756511308794,1.21606026,108700.0,108690.0,0.18907956]
[1756511308935,1.03001762,108700.0,108690.0,0.19208956]
[1756511309127,0.87613762,108700.0,108690.0,0.19208956]
[1756511309337,0.17202898,108700.0,108690.0,0.19208956]
[1756511309591,1.02997762,108700.0,108690.0,0.19208956]
[1756511309823,1.02997762,108700.0,108690.0,0.21974756]
[1756511310379,1.06013026,108700.0,108690.0,0.21974756]
[1756511310769,1.21393026,108700.0,108690.0,0.21974756]
[1756511310965,1.06013026,108700.0,108690.0,0.21974756]
[1756511311183,1.21591026,108700.0,108690.0,0.21974756]
[1756511311387,1.21591026,108700.0,108690.0,0.19208956]
[1756511312590,1.03191762,108700.0,108690.0,0.19208956]
[1756511313517,1.21591026,108700.0,108690.0,0.19208956]
[1756511313751,0.17392898,108700.0,108690.0,0.19208956]
[1756511313940,1.03187762,108700.0,108690.0,0.19208956]
[1756511314999,0.01818898,108700.0,108690.0,0.24994085]
[1756511315384,0.58281432,108710.0,108700.0,0.18399264]
[1756511315586,0.76877003,108710.0,108700.0,0.18399264]
[1756511316638,0.76877003,108710.0,108700.0,0.18504015]
[1756511316937,0.76977003,108710.0,108700.0,0.18504015]
[1756511318142,0.80266218,108710.0,108700.0,0.18504015]
[1756511318587,0.80166218,108710.0,108700.0,0.18504015]
[1756511318734,0.80166218,108710.0,108700.0,0.18604015]
[1756511318964,0.37268786,108710.0,108700.0,0.18504015]
[1756511319161,0.80166218,108710.0,108700.0,0.18504015]
[1756511320109,0.80166218,108710.0,108700.0,0.18704015]
[1756511321959,0.80166218,108710.0,108700.0,0.00304751]
[1756511322328,0.80166218,108710.0,108700.0,0.18704015]
[1756511324420,0.80454166,108710.0,108700.0,0.18704015]
[1756511324565,0.80166218,108710.0,108700.0,0.18704015]
[1756511324763,0.80454166,108710.0,108700.0,0.18704015]
[1756511325019,0.22172734,108710.0,108700.0,0.19212015]
[1756511325190,0.80162218,108710.0,108700.0,0.19212015]
[1756511325390,0.80450166,108710.0,108700.0,0.19212015]
[1756511330122,0.80162218,108710.0,108700.0,0.19212015]
[1756511331112,1.2305965,108710.0,108700.0,0.19212015]
[1756511332967,0.21884786,108710.0,108700.0,0.19212015]
[1756511333104,0.61574647,108710.0,108700.0,0.19212015]
[1756511333313,0.79972218,108710.0,108700.0,0.19212015]
[1756511335749,0.80178218,108710.0,108700.0,0.19212015]
[1756511339460,0.46186647,108710.0,108700.0,0.19212015]
[1756511339660,0.61566647,108710.0,108700.0,0.19212015]
[1756511339863,0.46186647,108710.0,108700.0,0.19212015]
[1756511340093,0.46186647,108710.0,108700.0,0.25671245]
[1756511340307,0.46186647,108710.0,108700.0,0.28436845]
[1756511341560,0.46186647,108710.0,108700.0,0.21977615]
[1756511342400,0.80166218,108710.0,108700.0,0.37353615]
[1756511344794,0.61558647,108710.0,108700.0,0.37353615]
[1756511345246,0.46186647,108710.0,108700.0,0.37353615]
[1756511346200,0.46186647,108710.0,108700.0,0.37153615]
[1756511347035,0.46186647,108710.0,108700.0,0.37353615]
[1756511347231,0.46186647,108710.0,108700.0,0.37253615]
[1756511347454,0.46186647,108710.0,108700.0,0.37353615]
[1756511347781,0.46186647,108710.0,108700.0,0.37253615]
[1756511347984,0.46186647,108710.0,108700.0,0.37453615]
[1756511348404,0.46186647,108710.0,108700.0,0.37253615]
[1756511348603,0.46186647,108710.0,108700.0,0.37553615]
[1756511349626,0.46186647,108710.0,108700.0,0.22177615]
[1756511349831,0.46392647,108710.0,108700.0,0.37545615]
[1756511351481,0.46392647,108710.0,108700.0,0.37244615]
[1756511351712,0.46392647,108710.0,108700.0,0.37541615]
[1756511352982,0.46392647,108710.0,108700.0,0.22173615]
[1756511353202,0.46392647,108710.0,108700.0,0.37541615]
[1756511363144,0.46392647,108710.0,108700.0,0.37532448]
[1756511365835,0.46186647,108710.0,108700.0,0.37532448]
[1756511369739,0.46186647,108710.0,108700.0,0.37512448]
[1756511373113,0.46389647,108710.0,108700.0,0.37512448]
[1756511373925,0.46389647,108710.0,108700.0,0.22164448]
[1756511374103,0.46389647,108710.0,108700.0,0.37508448]
[1756511381407,0.64787218,108710.0,108700.0,0.37508448]
[1756511385437,0.64787218,108710.0,108700.0,0.22164448]
[1756511385661,6.94013657,108710.0,108700.0,0.005]
[1756511385861,6.98507431,108710.0,108700.0,0.005]
[1756511386072,7.00497999,108710.0,108700.0,0.005]
[1756511386279,6.55609999,108710.0,108700.0,0.005]
[1756511386482,6.55609999,108710.0,108700.0,0.002]
[1756511386675,6.55608407,108710.0,108700.0,0.002]
[1756511386939,6.55608407,108710.0,108700.0,0.004]
[1756511387360,6.55608407,108710.0,108700.0,0.002]
[1756511387499,7.13849211,108710.0,108700.0,0.002]
[1756511388151,0.18400956,108690.0,108680.0,0.30254765]
[1756511388367,1.0439982,108690.0,108680.0,0.30789613]
[1756511388667,0.61502388,108690.0,108680.0,0.30789613]
[1756511388905,0.61502388,108690.0,108680.0,0.30263613]
[1756511389122,1.0439982,108690.0,108680.0,0.19331613]
[1756511389338,1.0439982,108690.0,108680.0,0.15352848]
[1756511389524,1.0439982,108690.0,108680.0,0.15452848]
[1756511390470,1.0439982,108690.0,108680.0,0.15652848]
[1756511391133,1.0439982,108690.0,108680.0,0.00308848]
[1756511391134,1.1974382,108690.0,108680.0,0.00308848]
[1756511391594,0.33948956,108690.0,108680.0,0.00308848]
[1756511391800,1.1974382,108690.0,108680.0,0.00308848]
[1756511392019,0.21480032,108700.0,108680.0,0.1945653]
[1756511392020,0.36511032,108700.0,108680.0,0.1945653]
[1756511392220,0.42897432,108690.0,108680.0,0.19226497]
[1756511392788,0.42897432,108690.0,108680.0,0.18926497]
[1756511393204,0.42897432,108690.0,108680.0,0.19026497]
[1756511393937,0.42897432,108690.0,108680.0,0.18926497]
[1756511394134,0.42897432,108690.0,108680.0,0.19126497]
[1756511394549,0.20139679,108690.0,108680.0,0.19126497]
[1756511395524,0.20139679,108690.0,108680.0,0.19226497]
[1756511398555,0.38540635,108690.0,108680.0,0.19226497]
[1756511399427,0.20139679,108690.0,108680.0,0.19226497]
[1756511401825,0.37289215,108710.0,108700.0,0.18399264]
[1756511402061,0.46186647,108710.0,108700.0,0.18914264]
[1756511403115,0.46186647,108710.0,108700.0,0.19214264]
[1756511404384,0.03289215,108710.0,108700.0,0.19214264]
[1756511404652,0.42897432,108710.0,108700.0,0.19214264]
[1756511405038,0.42897432,108710.0,108700.0,0.21979764]
[1756511405448,0.77513387,108720.0,108710.0,0.18397571]
[1756511405670,0.53538619,108720.0,108710.0,0.18397571]
[1756511405900,0.71937684,108720.0,108710.0,0.18397571]
[1756511406129,0.71937684,108720.0,108700.0,0.21765764]
[1756511406330,0.71937684,108720.0,108700.0,0.21665764]
[1756511406544,0.71937684,108720.0,108700.0,0.21465764]
[1756511406730,0.72037684,108720.0,108710.0,0.001]
[1756511406903,0.72857477,108720.0,108710.0,0.001]
[1756511407256,0.72857477,108720.0,108700.0,0.21465764]
[1756511407405,0.76610181,108720.0,108700.0,0.21465764]
[1756511408210,0.76710181,108720.0,108700.0,0.21465764]
[1756511408412,0.76710181,108720.0,108700.0,0.21565764]
[1756511408624,0.76710181,108720.0,108700.0,0.11565764]
[1756511408795,0.76710181,108720.0,108700.0,0.11795754]
[1756511409578,0.6123998,108710.0,108700.0,0.26838754]
[1756511409804,0.6143898,108710.0,108700.0,0.26608764]
[1756511410004,0.43041409,108710.0,108700.0,0.27123764]
[1756511410333,0.43041409,108710.0,108700.0,0.27023764]
[1756511411012,0.6143898,108710.0,108700.0,0.181095]
[1756511411193,0.18596571,108710.0,108700.0,0.029795]
[1756511411367,0.6175698,108710.0,108700.0,0.181095]
[1756511411737,0.6175698,108710.0,108700.0,0.182095]
[1756511412407,0.6175698,108710.0,108700.0,0.184095]
[1756511413191,0.6175698,108710.0,108700.0,0.030655]
[1756511414735,0.6143898,108710.0,108700.0,0.21464764]
[1756511420662,0.6143898,108710.0,108700.0,0.21991764]
[1756511420862,0.6143898,108710.0,108700.0,0.21464764]
[1756511425950,0.6143898,108710.0,108700.0,0.18699264]
[1756511427002,0.6143898,108710.0,108700.0,0.34043264]
[1756511427341,0.61447556,108710.0,108700.0,0.34043264]
[1756511432114,0.61447556,108710.0,108700.0,0.34359264]
[1756511432313,0.61447556,108710.0,108700.0,0.34570264]
[1756511436033,0.76787556,108710.0,108700.0,0.34570264]
[1756511439315,0.77105556,108710.0,108700.0,0.1564]
[1756511439505,0.77393497,108710.0,108700.0,0.1564]
[1756511439710,0.77075497,108710.0,108700.0,0.1564]
[1756511439981,0.77075497,108710.0,108700.0,0.003]
[1756511439982,1.20244482,108710.0,108700.0,0.003]
[1756511440179,6.6307412,108710.0,108700.0,0.003]
[1756511440390,6.6480098,108710.0,108700.0,0.003]
[1756511440580,6.6756688,108710.0,108700.0,0.003]
[1756511440778,6.69556214,108710.0,108700.0,0.001]
[1756511440983,6.69556214,108710.0,108680.0,8.848e-05]
[1756511440984,0.18400956,108690.0,108680.0,8.848e-05]
[1756511441115,0.76591941,108690.0,108680.0,0.15348848]
[1756511441326,0.76789941,108690.0,108680.0,8.848e-05]
[1756511442162,1.19640926,108690.0,108680.0,8.848e-05]
[1756511442343,1.19640926,108690.0,108680.0,0.00208848]
[1756511442591,0.76789941,108690.0,108680.0,0.00208848]
[1756511443522,0.76789941,108690.0,108680.0,0.00508848]
[1756511444693,1.19640926,108690.0,108680.0,0.00508848]
[1756511445147,0.76789941,108690.0,108680.0,0.00508848]
[1756511445914,6.28790558,108690.0,108680.0,0.00508848]
[1756511446129,6.62790558,108690.0,108680.0,0.00508848]
[1756511446341,6.65556958,108690.0,108680.0,0.00508848]
[1756511446760,6.61637404,108690.0,108680.0,0.00208848]
[1756511446968,6.63648611,108690.0,108680.0,0.00208848]
[1756511447201,6.61925441,108690.0,108680.0,0.00208848]
[1756511447430,6.62092833,108690.0,108680.0,8.848e-05]
[1756511447864,6.62092833,108690.0,108680.0,0.00108848]
[1756511448260,6.61704796,108690.0,108680.0,0.00108848]
[1756511448678,6.61804796,108690.0,108680.0,0.00108848]
[1756511454321,6.62092842,108690.0,108680.0,0.00108848]
[1756511454493,6.66016396,108690.0,108680.0,0.00108848]
[1756511457100,6.67735666,108690.0,108680.0,0.00108848]
[1756511458854,6.6744762,108690.0,108680.0,0.00108848]
[1756511459075,6.67735666,108690.0,108680.0,0.00108848]
[1756511460733,6.67735864,108690.0,108680.0,0.00108848]
[1756511465009,6.69718083,108690.0,108680.0,0.00108848]
[1756511467305,6.69714145,108690.0,108680.0,0.00108848]
[1756511470260,6.69718767,108690.0,108680.0,0.00108848]
[1756511470678,6.72200949,108690.0,108680.0,0.00108848]
[1756511471259,6.72847947,108690.0,108680.0,0.00108848]
[1756511473759,6.72849137,108690.0,108680.0,0.00108848]
[1756511476240,6.76165408,108690.0,108680.0,0.00108848]
[1756511477326,6.72849137,108690.0,108680.0,0.00108848]
[1756511478555,6.72862999,108690.0,108680.0,0.00108848]
[1756511479186,6.72542999,108690.0,108680.0,0.00108848]
[1756511479392,6.72836999,108690.0,108680.0,0.00108848]
[1756511479715,6.72542999,108690.0,108680.0,0.00108848]
[1756511480718,6.71609175,108690.0,108680.0,0.00108848]
[1756511480873,6.72544994,108690.0,108680.0,0.00108848]
[1756511487250,6.72838994,108690.0,108680.0,0.00108848]
[1756511487712,5.8707357,108690.0,108680.0,0.00108848]
[1756511487925,6.72839056,108690.0,108680.0,0.00108848]
[1756511488352,6.79915056,108690.0,108680.0,0.00108848]
[1756511489754,6.79621056,108690.0,108680.0,0.00108848]
[1756511491416,6.79621352,108690.0,108680.0,0.00108848]
[1756511493209,6.79915352,108690.0,108680.0,0.00108848]
[1756511493863,6.79621352,108690.0,108680.0,0.00108848]
[1756511494385,6.7713391,108690.0,108680.0,0.00108848]
[1756511494934,6.7742791,108690.0,108680.0,0.00108848]
[1756511495365,6.7713391,108690.0,108680.0,0.00108848]
[1756511498570,6.77134064,108690.0,108680.0,0.00108848]
[1756511499123,6.77134064,108690.0,108680.0,0.00611848]
[1756511501983,6.60803053,108690.0,108680.0,0.00611848]
[1756511502185,6.63993194,108690.0,108680.0,0.00611848]
[1756511502519,6.64189194,108690.0,108680.0,0.00611848]
[1756511506365,6.57113194,108690.0,108680.0,0.00611848]
[1756511508422,6.57113194,108690.0,108680.0,0.00412848]
[1756511508980,6.57113194,108690.0,108680.0,0.00108848]
[1756511510780,6.57235194,108690.0,108680.0,0.00108848]
[1756511510995,7.00117906,108690.0,108680.0,0.00108848]
[1756511511236,6.57235194,108690.0,108680.0,0.00108848]
[1756511511663,6.57235194,108690.0,108680.0,8.848e-05]
[1756511511933,6.59722636,108690.0,108680.0,8.848e-05]
[1756511512152,6.59622636,108690.0,108680.0,8.848e-05]
[1756511512410,6.59922636,108690.0,108680.0,8.848e-05]
[1756511512658,6.59274011,108690.0,108680.0,8.848e-05]
[1756511512862,6.5992187,108690.0,108680.0,8.848e-05]
[1756511513065,6.57906167,108690.0,108680.0,8.848e-05]
[1756511513267,6.5992187,108690.0,108680.0,8.848e-05]
[1756511513419,6.59921685,108690.0,108680.0,8.848e-05]
[1756511513619,7.02804397,108690.0,108680.0,8.848e-05]
[1756511513853,7.03633226,108690.0,108680.0,8.848e-05]
[1756511514282,7.06120224,108690.0,108680.0,8.848e-05]
[1756511516126,7.04104706,108690.0,108680.0,8.848e-05]
[1756511516328,7.06119284,108690.0,108680.0,8.848e-05]
[1756511519150,7.06118149,108690.0,108680.0,8.848e-05]
[1756511520271,6.90774149,108690.0,108680.0,8.848e-05]
[1756511520464,7.05996149,108690.0,108680.0,8.848e-05]
[1756511521292,6.90652149,108690.0,108680.0,8.848e-05]
[1756511521452,7.02679878,108690.0,108680.0,0.00326848]
[1756511522020,7.00018576,108690.0,108680.0,0.00326848]
[1756511522235,7.02679637,108690.0,108680.0,0.00326848]
[1756511522438,7.02679637,108690.0,108680.0,8.848e-05]
[1756511525774,7.0267963,108690.0,108680.0,8.848e-05]
[1756511526911,7.0248363,108690.0,108680.0,0.00543848]
[1756511527575,7.0267963,108690.0,108680.0,0.00326848]
[1756511528345,7.0267963,108690.0,108680.0,8.848e-05]
[1756511529040,7.0267963,108690.0,108680.0,0.00326848]
[1756511529960,6.8713963,108690.0,108680.0,0.00543848]
[1756511530143,7.0248363,108690.0,108680.0,0.00543848]
[1756511530547,7.0267963,108690.0,108680.0,0.00543848]
[1756511532684,7.00953834,108690.0,108680.0,0.00543848]
[1756511532877,7.02679823,108690.0,108680.0,0.00326848]
[1756511533123,7.02679823,108690.0,108680.0,0.00543848]
[1756511533533,7.02679861,108690.0,108680.0,0.00543848]
[1756511534129,7.02679861,108690.0,108680.0,8.848e-05]
[1756511534542,6.87335861,108690.0,108680.0,0.00326848]
[1756511534761,7.02679861,108690.0,108680.0,0.00326848]
[1756511535292,7.02679861,108690.0,108680.0,0.00543848]
[1756511535961,7.02679861,108690.0,108680.0,8.848e-05]
[1756511536160,7.02680386,108690.0,108680.0,8.848e-05]
[1756511536387,7.02680386,108690.0,108680.0,0.00326848]
[1756511539148,7.05996657,108690.0,108680.0,0.00326848]
[1756511539977,7.05996657,108690.0,108680.0,8.848e-05]
[1756511543250,7.03622932,108690.0,108680.0,8.848e-05]
[1756511543463,7.05998871,108690.0,108680.0,8.848e-05]
[1756511543881,7.05998878,108690.0,108680.0,8.848e-05]
[1756511548932,6.90654878,108690.0,108680.0,8.848e-05]
[1756511549085,7.05998878,108690.0,108680.0,8.848e-05]
[1756511549508,6.90654878,108690.0,108680.0,0.00509848]
[1756511549856,7.03334847,108690.0,108680.0,0.00509848]
[1756511550054,7.05999279,108690.0,108680.0,0.00509848]
[1756511550439,7.05999283,108690.0,108680.0,0.00509848]
[1756511551839,6.90655283,108690.0,108680.0,0.00509848]
[1756511552040,7.05999283,108690.0,108680.0,0.00509848]
[1756511553739,7.05063103,108690.0,108680.0,0.00509848]
[1756511553944,6.83966883,108690.0,108680.0,0.00509848]
[1756511554146,6.68683253,108690.0,108680.0,0.00509848]
[1756511554742,6.68683253,108690.0,108680.0,0.00302848]
[1756511555703,6.68683253,108690.0,108680.0,8.848e-05]
[1756511556204,7.02683253,108690.0,108680.0,8.848e-05]
[1756511560611,7.06852894,108690.0,108680.0,8.848e-05]
[1756511563943,7.10169165,108690.0,108680.0,8.848e-05]
[1756511564370,7.09881174,108690.0,108680.0,8.848e-05]
[1756511564658,6.9482526,108690.0,108680.0,8.848e-05]
[1756511564858,7.1017326,108690.0,108680.0,0.00509848]
[1756511565583,7.1016926,108690.0,108680.0,0.00509848]
[1756511565761,6.9462926,108690.0,108680.0,0.00509848]
[1756511565968,7.0997326,108690.0,108680.0,0.00509848]
[1756511567820,6.9462926,108690.0,108680.0,0.00509848]
[1756511567967,7.0997326,108690.0,108680.0,0.00509848]
[1756511569845,6.9462926,108690.0,108680.0,0.00509848]
[1756511570030,7.0997326,108690.0,108680.0,0.00509848]
[1756511571559,7.1016926,108690.0,108680.0,0.00509848]
[1756511572914,7.0997326,108690.0,108680.0,0.00509848]
[1756511574013,7.1016926,108690.0,108680.0,0.00509848]
[1756511574847,7.1724526,108690.0,108680.0,0.00509848]
[1756511575135,7.17245062,108690.0,108680.0,0.00509848]
[1756511575602,7.1724506,108690.0,108680.0,0.00509848]
[1756511578671,7.17245042,108690.0,108680.0,0.00509848]
[1756511579885,7.17245042,108690.0,108680.0,0.00302848]
[1756511580097,7.17245042,108690.0,108680.0,8.848e-05]
[1756511581118,7.15516699,108690.0,108680.0,8.848e-05]
[1756511581333,7.1724504,108690.0,108680.0,0.00531848]
[1756511582894,7.13075399,108690.0,108680.0,0.00319848]
[1756511583433,7.13075399,108690.0,108680.0,0.00531848]